fUSD/lending_fUSD_20251212
["ID","MTS","AMOUNT","RATE_DAILY","PERIOD"]
[398346116,1765538140421,-6454.89932997,0.00042,120]
[398346117,1765538140434,-672.45,0.00042,30]
[398346118,1765538140446,-1000.0,0.00042,120]
[398346119,1765538140459,-156.0,0.00042,30]
[398346120,1765538140472,-1289.96871384,0.00042,120]
[398346121,1765538140485,-579.7136025,0.00042,120]
[398346122,1765538140498,-150.0,0.00042,60]
[398346123,1765538140510,-150.0,0.00042,53]
[398346124,1765538140523,-1353.96396522,0.0004201,2]
[398346125,1765538140536,-1216.14624224,0.0004205,2]
[398346126,1765538140550,-531.0,0.00042055,120]
[398346127,1765538140565,-1000.0,0.00042055,2]
[398346128,1765538140578,-222.55188215,0.00042085,60]
[398346129,1765538140592,-582.0,0.000421,3]
[398346130,1765538140607,-2214.54984157,0.00042121,120]
[398346131,1765538140619,-500.0,0.00042191,30]
[398346132,1765538140633,-500.0,0.00042191,30]
[398346133,1765538140646,-500.0,0.00042191,30]
[398346134,1765538140659,-500.0,0.00042191,30]
[398346135,1765538140672,-1824.08,0.00042191,30]
[398346136,1765538140685,-651.26,0.00042191,30]
[398346137,1765538140699,-500.0,0.00042191,30]
[398346138,1765538140713,-619.67474169,0.00042191,30]
[398346139,1765538140727,-768.58,0.00042191,30]
[398346140,1765538140741,-500.0,0.00042191,30]
[398346141,1765538140756,-604.69,0.00042191,30]
[398346142,1765538140771,-500.0,0.00042191,30]
[398346143,1765538140785,-1703.32,0.00042191,30]
[398346144,1765538140799,-601.55,0.00042191,7]
[398346145,1765538140812,-662.42,0.00042191,30]
[398346146,1765538140826,-693.68,0.00042191,30]
[398346147,1765538140839,-500.0,0.00042191,30]
[398346148,1765538140852,-500.0,0.00042191,30]
[398346149,1765538140866,-500.0,0.00042191,30]
[398346150,1765538140880,-1436.54,0.00042191,30]
[398346151,1765538140896,-500.0,0.00042191,30]
[398346152,1765538140911,-274.57859366,0.00042191,30]
[398346153,1765538140924,-500.0,0.00042191,30]
[398346154,1765538140940,-500.0,0.00042191,30]
[398346155,1765538140954,-500.0,0.00042191,30]
[398346156,1765538140969,-500.0,0.00042191,30]
[398346157,1765538140983,-500.0,0.00042191,30]
[398346158,1765538140997,-698.57,0.00042191,30]
[398346159,1765538141011,-789.19,0.00042191,30]
[398346160,1765538141024,-536.8642566,0.00042191,30]
[398346161,1765538141037,-627.23,0.00042191,30]
[398346162,1765538141052,-500.0,0.00042191,30]
[398346163,1765538141067,-772.34,0.00042191,30]
[398346164,1765538141082,-500.0,0.00042191,30]
[398346165,1765538141096,-229.89367063,0.00042191,30]
[398346166,1765538141111,-741.68,0.00042191,30]
[398346167,1765538141127,-545.86,0.00042191,30]
[398346168,1765538141143,-625.45,0.00042191,30]
[398346169,1765538141158,-646.79,0.00042191,30]
[398346170,1765538141173,-646.65,0.00042191,30]
[398346171,1765538141188,-794.95,0.00042191,30]
[398346172,1765538141204,-500.0,0.00042191,30]
[398346173,1765538141219,-687.17,0.00042191,30]
[398346174,1765538141235,-500.0,0.00042191,30]
[398346175,1765538141249,-885.09,0.00042191,30]
[398346176,1765538141264,-1097.95,0.00042191,30]
[398346177,1765538141279,-500.0,0.00042191,30]
[398346178,1765538141293,-276.03472099,0.00042191,30]
[398346179,1765538141308,-837.55,0.00042191,30]
[398346180,1765538141323,-540.22,0.00042191,30]
[398346181,1765538141337,-519.63,0.00042191,30]
[398346182,1765538141351,-1294.43,0.00042191,30]
[398346183,1765538141366,-500.0,0.00042191,30]
[398346184,1765538141380,-500.0,0.00042191,30]
[398346185,1765538141396,-1011.88,0.00042191,30]
[398346186,1765538141410,-500.0,0.00042191,30]
[398346187,1765538141426,-500.0,0.00042191,30]
[398346188,1765538141439,-1196.03,0.00042191,30]
[398346189,1765538141454,-617.95,0.00042191,30]
[398346190,1765538141469,-548.66,0.00042191,30]
[398346191,1765538141483,-500.0,0.00042191,30]
[398346192,1765538141496,-500.0,0.00042191,30]
[398346193,1765538141512,-678.18,0.00042191,30]
[398346194,1765538141528,-500.0,0.00042191,30]
[398346195,1765538141542,-500.0,0.00042191,30]
[398346196,1765538141556,-585.26,0.00042191,30]
[398346197,1765538141571,-500.0,0.00042191,30]
[398346198,1765538141586,-672.38,0.00042191,30]
[398346199,1765538141600,-542.28,0.00042191,30]
[398346200,1765538141615,-500.0,0.00042191,30]
[398346201,1765538141630,-755.36,0.00042191,30]
[398346202,1765538141645,-1228.59,0.00042191,30]
[398346203,1765538141661,-1439.79,0.00042191,30]
[398346204,1765538141676,-864.07,0.00042191,30]
[398346205,1765538141691,-573.95,0.00042191,30]
[398346206,1765538141705,-533.54,0.00042191,30]
[398346207,1765538141719,-938.76,0.00042191,30]
[398346208,1765538141733,-319.3897407,0.00042191,30]
[398346209,1765538141746,-500.0,0.00042191,30]
[398346210,1765538141761,-620.08,0.00042191,30]
[398346211,1765538141776,-775.57,0.00042191,30]
[398346212,1765538141793,-500.0,0.00042191,30]
[398346213,1765538141810,-501.55,0.00042191,30]
[398346214,1765538141827,-500.0,0.00042191,14]
[398346215,1765538141844,-755.67,0.00042191,30]
[398346216,1765538141860,-503.01,0.00042191,30]
[398346217,1765538141875,-500.0,0.00042191,30]
[398346218,1765538141892,-595.47,0.00042191,30]
[398346219,1765538141907,-517.36,0.00042191,30]
[398346220,1765538141922,-500.0,0.00042191,30]
[398346221,1765538141935,-184.97333327,0.00042191,30]
[398346222,1765538141951,-500.0,0.00042191,30]
[398346223,1765538141967,-1197.34,0.00042191,30]
[398346224,1765538141982,-609.14,0.00042191,30]
[398346225,1765538141998,-897.9,0.00042191,30]
[398346226,1765538142013,-702.09,0.00042191,30]
[398346227,1765538142029,-663.82,0.00042191,30]
[398346228,1765538142042,-500.0,0.00042191,30]
[398346229,1765538142057,-500.0,0.00042191,30]
[398346230,1765538142070,-500.0,0.00042191,30]
[398346231,1765538142084,-740.86,0.00042191,30]
[398346232,1765538142097,-500.0,0.00042191,30]
[398346233,1765538142113,-1430.91,0.00042191,30]
[398346234,1765538142129,-1100.71,0.00042191,11]
[398346235,1765538142144,-563.18,0.00042191,30]
[398346236,1765538142160,-1144.71,0.00042191,30]
[398346237,1765538142176,-758.29,0.00042191,30]
[398346238,1765538142193,-667.94,0.00042191,30]
[398346239,1765538142211,-500.0,0.00042191,30]
[398346240,1765538142226,-1846.03,0.00042191,30]
[398346241,1765538142242,-500.0,0.00042191,30]
[398346242,1765538142257,-500.0,0.00042191,30]
[398346243,1765538142273,-500.0,0.00042191,30]
[398346244,1765538142288,-676.5,0.00042191,30]
[398346245,1765538142304,-500.0,0.00042191,30]
[398346246,1765538142319,-732.08,0.00042191,30]
[398346247,1765538142333,-724.94,0.00042191,30]
[398346248,1765538142347,-643.49,0.00042191,30]
[398346249,1765538142360,-1213.64,0.00042191,30]
[398346250,1765538142376,-607.07,0.00042191,30]
[398346251,1765538142389,-750.79,0.00042191,30]
[398346252,1765538142403,-1215.39,0.00042191,30]
[398346253,1765538142416,-565.7,0.00042191,30]
[398346254,1765538142431,-634.80245355,0.00042191,30]
[398346255,1765538142446,-500.0,0.00042191,30]
[398346256,1765538142461,-848.58,0.00042191,30]
[398346257,1765538142476,-500.0,0.00042191,30]
[398346258,1765538142490,-500.0,0.00042191,30]
[398346259,1765538142504,-753.21,0.00042191,30]
[398346260,1765538142517,-500.0,0.00042191,30]
[398346261,1765538142530,-506.43673769,0.00042191,30]
[398346262,1765538142544,-500.0,0.00042191,30]
[398346263,1765538142558,-552.91,0.00042191,30]
[398346264,1765538142572,-795.68,0.00042191,30]
[398346265,1765538142586,-500.0,0.00042191,30]
[398346266,1765538142600,-692.67,0.00042191,30]
[398346267,1765538142615,-745.98,0.00042191,30]
[398346268,1765538142629,-500.0,0.00042191,30]
[398346269,1765538142643,-500.0,0.00042191,30]
[398346270,1765538142657,-509.85140852,0.00042191,30]
[398346271,1765538142671,-714.2,0.00042191,30]
[398346272,1765538142684,-500.0,0.00042191,30]
[398346273,1765538142697,-235.15926343,0.00042191,30]
[398346274,1765538142710,-500.0,0.00042191,30]
[398346275,1765538142724,-990.89,0.00042191,30]
[398346276,1765538142737,-1141.33,0.00042191,30]
[398346277,1765538142754,-500.0,0.00042191,30]
[398346278,1765538142769,-736.93,0.00042191,30]
[398346279,1765538142782,-500.0,0.00042191,30]
[398346280,1765538142797,-500.0,0.00042191,30]
[398346281,1765538142810,-1026.69,0.00042191,30]
[398346282,1765538142824,-866.2,0.00042191,30]
[398346283,1765538142837,-500.0,0.00042191,30]
[398346284,1765538142851,-500.0,0.00042191,30]
[398346285,1765538142865,-510.19,0.00042191,30]
[398346286,1765538142879,-709.46,0.00042191,30]
[398346287,1765538142895,-755.64,0.00042191,30]
[398346288,1765538142910,-1337.95,0.00042191,30]
[398346289,1765538142924,-3627.22,0.00042191,30]
[398346290,1765538142942,-750.49,0.00042191,30]
[398346291,1765538142958,-500.0,0.00042191,30]
[398346292,1765538142977,-856.96,0.00042191,30]
[398346293,1765538142991,-1759.45,0.00042191,30]
[398346294,1765538143005,-500.0,0.00042191,30]
[398346295,1765538143019,-524.23,0.00042191,30]
[398346296,1765538143033,-500.0,0.00042191,30]
[398346297,1765538143047,-500.54,0.00042191,30]
[398346298,1765538143061,-1039.78,0.00042191,30]
[398346299,1765538143076,-730.61,0.00042191,30]
[398346300,1765538143090,-505.75017747,0.00042191,30]
[398346301,1765538143105,-615.84,0.00042191,30]
[398346302,1765538143119,-647.65,0.00042191,30]
[398346303,1765538143133,-906.8,0.00042191,30]
[398346304,1765538143148,-1472.62,0.00042191,30]
[398346305,1765538143162,-551.86,0.00042191,30]
[398346306,1765538143177,-500.0,0.00042191,30]
[398346307,1765538143193,-500.0,0.00042191,30]
[398346308,1765538143208,-499.31608522,0.00042191,30]
[398346309,1765538143223,-500.0,0.00042191,30]
[398346310,1765538143238,-2737.4,0.00042191,30]
[398346311,1765538143252,-1372.17,0.00042191,30]
[398346312,1765538143267,-500.0,0.00042191,30]
[398346313,1765538143281,-500.0,0.00042191,30]
[398346314,1765538144099,-500.0,0.00042191,30]
[398346315,1765538144121,-2430.46,0.00042191,30]
[398346316,1765538144131,-500.0,0.00042191,30]
[398346317,1765538144140,-500.0,0.00042191,30]
[398346318,1765538144150,-500.0,0.00042191,30]
[398346319,1765538144160,-1139.75,0.00042191,30]
[398346320,1765538144169,-1401.35,0.00042191,30]
[398346321,1765538144179,-800.13,0.00042191,30]
[398346322,1765538144189,-1445.96,0.00042191,30]
[398346323,1765538144198,-500.0,0.00042191,30]
[398346324,1765538144209,-918.45,0.00042191,30]
[398346325,1765538144218,-1070.7,0.00042191,30]
[398346326,1765538144227,-500.0,0.00042191,30]
[398346327,1765538144237,-500.0,0.00042191,30]
[398346328,1765538144246,-2437.96,0.00042191,30]
[398346329,1765538144255,-478.80877388,0.00042191,30]
[398346330,1765538144265,-592.87,0.00042191,30]
[398346331,1765538144274,-500.0,0.00042191,30]
[398346332,1765538144284,-1588.94,0.00042191,30]
[398346333,1765538144294,-537.45,0.00042191,30]
[398346334,1765538144303,-500.0,0.00042191,30]
[398346335,1765538144312,-522.96,0.00042191,30]
[398346336,1765538144322,-209.50006295,0.00042191,30]
[398346337,1765538144332,-1096.52,0.00042191,30]
[398346338,1765538144341,-500.0,0.00042191,30]
[398346339,1765538144350,-500.0,0.00042191,30]
[398346340,1765538144359,-542.04,0.00042191,30]
[398346341,1765538144369,-637.83,0.00042191,30]
[398346342,1765538144379,-698.44,0.00042191,30]
[398346343,1765538144388,-660.2,0.00042191,30]
[398346344,1765538144397,-500.0,0.00042191,30]
[398346345,1765538144407,-500.0,0.00042191,30]
[398346346,1765538144416,-612.46412319,0.00042191,30]
[398346347,1765538144425,-1065.82,0.00042191,30]
[398346348,1765538144435,-230.24552197,0.00042191,30]
[398346349,1765538144445,-500.0,0.00042191,30]
[398346350,1765538144455,-2027.17,0.00042191,30]
[398346351,1765538144464,-663.04,0.00042191,30]
[398346352,1765538144474,-500.0,0.00042191,30]
[398346353,1765538144484,-500.0,0.00042191,30]
[398346354,1765538144493,-500.0,0.00042191,30]
[398346355,1765538144503,-500.0,0.00042191,30]
[398346356,1765538144512,-500.0,0.00042191,30]
[398346357,1765538144522,-1034.23,0.00042191,30]
[398346358,1765538144531,-1526.42,0.00042191,30]
[398346359,1765538144540,-500.0,0.00042191,30]
[398346360,1765538144550,-500.0,0.00042191,30]
[398346361,1765538144559,-604.96,0.00042191,30]
[398346362,1765538144569,-500.0,0.00042191,30]
[398346363,1765538144579,-526.63,0.00042191,30]
[398346364,1765538144589,-500.0,0.00042191,30]
[398346365,1765538144598,-1577.6,0.00042191,30]
[398346366,1765538144607,-500.0,0.00042191,30]
[398346367,1765538144617,-500.0,0.00042191,30]
[398346368,1765538144626,-500.0,0.00042191,30]
[398346369,1765538144635,-500.0,0.00042191,30]
[398346370,1765538144645,-1132.8,0.00042191,30]
[398346371,1765538144655,-705.52,0.00042191,30]
[398346372,1765538144664,-570.07,0.00042191,30]
[398346373,1765538144673,-961.9,0.00042191,30]
[398346374,1765538144683,-735.82,0.00042191,30]
[398346375,1765538144692,-749.42,0.00042191,30]
[398346376,1765538144702,-1191.88,0.00042191,30]
[398346377,1765538144711,-522.47,0.00042191,30]
[398346378,1765538144720,-4298.84,0.00042191,30]
[398346379,1765538144729,-974.16,0.00042191,30]
[398346380,1765538144739,-1095.96,0.00042191,30]
[398346381,1765538144747,-938.71,0.00042191,30]
[398346382,1765538144756,-1397.58,0.00042191,30]
[398346383,1765538144765,-500.0,0.00042191,30]
[398346384,1765538144774,-2368.57,0.00042191,30]
[398346385,1765538144783,-508.91,0.00042191,30]
[398346386,1765538144792,-1181.83,0.00042191,30]
[398346387,1765538144801,-2107.36,0.00042191,30]
[398346388,1765538144810,-591.32,0.00042191,30]
[398346389,1765538144819,-500.0,0.00042191,30]
[398346390,1765538144828,-1407.05,0.00042191,30]
[398346391,1765538144837,-712.24,0.00042191,30]
[398346392,1765538144846,-581.2068329,0.00042191,30]
[398346393,1765538144856,-500.0,0.00042191,30]
[398346394,1765538144865,-1000.77,0.00042191,30]
[398346395,1765538144875,-500.0,0.00042191,30]
[398346396,1765538144884,-578.91,0.00042191,30]
[398346397,1765538144896,-1480.01,0.00042191,30]
[398346398,1765538144906,-796.45,0.00042191,30]
[398346399,1765538144916,-1121.9,0.00042191,30]
[398346400,1765538144926,-538.64,0.00042191,30]
[398346401,1765538144938,-875.09,0.00042191,30]
[398346402,1765538144948,-295.81782925,0.00042191,30]
[398346403,1765538144958,-1342.46,0.00042191,30]
[398346404,1765538144969,-500.0,0.00042191,30]
[398346405,1765538144979,-500.0,0.00042191,30]
[398346406,1765538144989,-500.0,0.00042191,30]
[398346407,1765538144999,-551.7,0.00042191,30]
[398346408,1765538145009,-500.0,0.00042191,30]
[398346409,1765538145019,-500.0,0.00042191,30]
[398346410,1765538145028,-500.0,0.00042191,30]
[398346411,1765538145039,-500.0,0.00042191,30]
[398346412,1765538145049,-891.01,0.00042191,30]
[398346413,1765538145061,-1631.76,0.00042191,30]
[398346414,1765538145072,-500.0,0.00042191,30]
[398346415,1765538145082,-511.07,0.00042191,30]
[398346416,1765538145092,-935.63,0.00042191,30]
[398346417,1765538145102,-500.0,0.00042191,30]
[398346418,1765538145112,-1213.86,0.00042191,30]
[398346419,1765538145122,-713.52,0.00042191,30]
[398346420,1765538145131,-500.0,0.00042191,30]
[398346421,1765538145141,-999.59,0.00042191,30]
[398346422,1765538145151,-762.67,0.00042191,30]
[398346423,1765538145162,-500.0,0.00042191,30]
[398346424,1765538145172,-922.65,0.00042191,30]
[398346425,1765538145182,-1139.73,0.00042191,30]
[398346426,1765538145191,-500.0,0.00042191,30]
[398346427,1765538145201,-960.26,0.00042191,30]
[398346428,1765538145211,-921.07,0.00042191,30]
[398346429,1765538145221,-824.08,0.00042191,30]
[398346430,1765538145230,-500.0,0.00042191,30]
[398346431,1765538145240,-1836.88,0.00042191,30]
[398346432,1765538145250,-500.0,0.00042191,30]
[398346433,1765538145260,-500.0,0.00042191,30]
[398346434,1765538145270,-807.06,0.00042191,30]
[398346435,1765538145280,-1304.95,0.00042191,30]
[398346436,1765538145290,-1005.91,0.00042191,30]
[398346437,1765538145301,-500.0,0.00042191,30]
[398346438,1765538145312,-1051.07,0.00042191,30]
[398346439,1765538145322,-500.0,0.00042191,30]
[398346440,1765538145332,-929.4,0.00042191,30]
[398346441,1765538145342,-500.0,0.00042191,30]
[398346442,1765538145352,-621.09,0.00042191,30]
[398346443,1765538145363,-500.0,0.00042191,30]
[398346444,1765538145373,-1874.12,0.00042191,30]
[398346445,1765538145383,-500.0,0.00042191,30]
[398346446,1765538145392,-521.95,0.00042191,30]
[398346447,1765538145403,-500.0,0.00042191,25]
[398346448,1765538145413,-500.0,0.00042191,30]
[398346449,1765538145423,-578.01,0.00042191,30]
[398346450,1765538145432,-667.26,0.00042191,7]
[398346451,1765538145442,-701.87,0.00042191,30]
[398346452,1765538145452,-532.36,0.00042191,30]
[398346453,1765538145463,-375.48452393,0.00042191,30]
[398346454,1765538145472,-890.33,0.00042191,30]
[398346455,1765538145482,-619.34,0.00042191,30]
[398346456,1765538145492,-500.0,0.00042191,30]
[398346457,1765538145502,-666.66,0.00042191,30]
[398346458,1765538145511,-679.95,0.00042191,30]
[398346459,1765538145521,-846.97,0.00042191,30]
[398346460,1765538145531,-1622.6,0.00042191,30]
[398346461,1765538145541,-1634.93,0.00042191,30]
[398346462,1765538145552,-1372.09,0.00042191,30]
[398346463,1765538145562,-867.67,0.00042191,30]
[398346464,1765538145571,-500.0,0.00042191,30]
[398346465,1765538145586,-630.63,0.00042191,30]
[398346466,1765538145597,-500.0,0.00042191,30]
[398346467,1765538145606,-1368.81,0.00042191,30]
[398346468,1765538145616,-255.44115034,0.00042191,30]
[398346469,1765538145626,-500.0,0.00042191,30]
[398346470,1765538145635,-500.0,0.00042191,30]
[398346471,1765538145645,-1877.84,0.00042191,30]
[398346472,1765538145655,-2251.55,0.00042191,30]
[398346473,1765538145665,-626.64,0.00042191,30]
[398346474,1765538145675,-554.25,0.00042191,30]
[398346475,1765538145685,-500.0,0.00042191,30]
[398346476,1765538145696,-500.0,0.00042191,30]
[398346477,1765538145707,-1066.72,0.00042191,30]
[398346478,1765538145717,-1191.7,0.00042191,30]
[398346479,1765538145727,-620.95,0.00042191,30]
[398346480,1765538145739,-500.0,0.00042191,30]
[398346481,1765538145749,-2254.72,0.00042191,30]
[398346482,1765538145758,-1109.61,0.00042191,30]
[398346483,1765538145768,-500.0,0.00042191,30]
[398346484,1765538145778,-1451.06,0.00042191,30]
[398346485,1765538145788,-500.0,0.00042191,30]
[398346486,1765538145797,-524.1,0.00042191,30]
[398346487,1765538145807,-535.99,0.00042191,30]
[398346488,1765538145817,-1647.96,0.00042191,30]
[398346489,1765538145827,-500.0,0.00042191,30]
[398346490,1765538145836,-500.0,0.00042191,30]
[398346491,1765538145845,-1607.35,0.00042191,30]
[398346492,1765538145855,-214.19943203,0.00042191,30]
[398346493,1765538145865,-500.0,0.00042191,30]
[398346494,1765538145875,-1890.33,0.00042191,30]
[398346495,1765538145886,-702.35,0.00042191,30]
[398346496,1765538145900,-1448.32,0.00042191,30]
[398346497,1765538145910,-1632.19,0.00042191,30]
[398346498,1765538145921,-876.83,0.00042191,30]
[398346499,1765538145931,-832.79,0.00042191,30]
[398346500,1765538145940,-623.5,0.00042191,30]
[398346501,1765538145951,-2761.6,0.00042191,30]
[398346502,1765538145961,-604.56,0.00042191,30]
[398346503,1765538145971,-769.61,0.00042191,30]
[398346504,1765538145982,-1014.43,0.00042191,30]
[398346505,1765538145992,-500.0,0.00042191,30]
[398346506,1765538146002,-500.0,0.00042191,30]
[398346507,1765538146012,-500.0,0.00042191,30]
[398346508,1765538146021,-977.53,0.00042191,30]
[398346509,1765538146031,-799.32,0.00042191,30]
[398346510,1765538146041,-500.0,0.00042191,30]
[398346511,1765538146051,-1062.18,0.00042191,30]
[398346512,1765538146061,-502.48,0.00042191,30]
[398346513,1765538146071,-882.68,0.00042191,30]
[398346514,1765538146084,-907.2,0.00042191,30]
[398346515,1765538146094,-1677.04,0.00042191,30]
[398346516,1765538146103,-786.93,0.00042191,30]
[398346517,1765538146113,-566.21,0.00042191,30]
[398346518,1765538146123,-1523.05,0.00042191,30]
[398346519,1765538146133,-530.6962862,0.00042191,30]
[398346520,1765538146143,-623.75,0.00042191,30]
[398346521,1765538146153,-646.21,0.00042191,30]
[398346522,1765538146163,-500.0,0.00042191,30]
[398346523,1765538146173,-850.56,0.00042191,30]
[398346524,1765538146183,-506.59,0.00042191,30]
[398346525,1765538146194,-2457.1,0.00042191,30]
[398346526,1765538146205,-1824.58,0.00042191,30]
[398346527,1765538146216,-593.38,0.00042191,30]
[398346528,1765538146227,-360.90155918,0.00042191,30]
[398346529,1765538146237,-2498.97,0.00042191,30]
[398346530,1765538146247,-937.73,0.00042191,30]
[398346531,1765538146257,-500.0,0.00042191,30]
[398346532,1765538146267,-7728.61,0.00042191,30]
[398346533,1765538146277,-500.0,0.00042191,30]
[398346534,1765538146288,-500.0,0.00042191,30]
[398346535,1765538146299,-521.3,0.00042191,30]
[398346536,1765538146309,-5162.44,0.00042191,30]
[398346537,1765538146320,-4512.65,0.00042191,30]
[398346538,1765538146330,-2045.54,0.00042191,30]
[398346539,1765538146341,-2044.49,0.00042191,30]
[398346540,1765538146352,-803.09,0.00042191,30]
[398346541,1765538146362,-880.62,0.00042191,30]
[398346542,1765538146372,-1055.54,0.00042191,30]
[398346543,1765538146382,-1170.58,0.00042191,30]
[398346544,1765538146392,-500.0,0.00042191,30]
[398346545,1765538146402,-2563.76,0.00042191,30]
[398346546,1765538146412,-3132.56,0.00042191,30]
[398346547,1765538146422,-647.8,0.00042191,30]
[398346548,1765538146431,-1267.04,0.00042191,30]
[398346549,1765538146441,-920.56,0.00042191,30]
[398346550,1765538146626,-1034.08,0.00042191,30]
[398346551,1765538146636,-500.0,0.00042191,30]
[398346552,1765538146645,-636.17,0.00042191,30]
[398346553,1765538146655,-534.23,0.00042191,30]
[398346554,1765538146665,-2487.95,0.00042191,14]
[398346555,1765538146674,-9205.7,0.00042191,30]
[398346556,1765538146685,-500.0,0.00042191,30]
[398346557,1765538146695,-500.0,0.00042191,30]
[398346558,1765538146708,-852.0,0.00042191,30]
[398346559,1765538146719,-1627.24,0.00042191,30]
[398346560,1765538146730,-9937.58,0.00042191,30]
[398346561,1765538146742,-1228.02,0.00042191,30]
[398346562,1765538146752,-727.84,0.00042191,30]
[398346563,1765538146762,-709.82,0.00042191,30]
[398346564,1765538146772,-2584.59,0.00042191,30]
[398346565,1765538146782,-3111.31,0.00042191,30]
[398346566,1765538146792,-938.28,0.00042191,30]
[398346567,1765538146803,-724.94,0.00042191,30]
[398346568,1765538146812,-2254.56,0.00042191,30]
[398346569,1765538146822,-922.78,0.00042191,30]
[398346570,1765538146831,-899.02,0.00042191,30]
[398346571,1765538146840,-500.0,0.00042191,30]
[398346572,1765538146849,-730.51,0.00042191,30]
[398346573,1765538146858,-670.8,0.00042191,30]
[398346574,1765538146868,-890.92,0.00042191,30]
[398346575,1765538146877,-1306.66,0.00042191,30]
[398346576,1765538146886,-500.0,0.00042191,30]
[398346577,1765538146899,-500.0,0.00042191,30]
[398346578,1765538146910,-949.39,0.00042191,30]
[398346579,1765538146919,-1193.64,0.00042191,30]
[398346580,1765538146928,-667.64,0.00042191,30]
[398346581,1765538146937,-377.40192534,0.00042191,30]
[398346582,1765538146946,-1105.53,0.00042191,30]
[398346583,1765538146957,-500.0,0.00042191,30]
[398346584,1765538146968,-1566.37,0.00042191,30]
[398346585,1765538146978,-691.31,0.00042191,30]
[398346586,1765538146987,-986.5,0.00042191,30]
[398346587,1765538146996,-2660.16,0.00042191,30]
[398346588,1765538147006,-500.0,0.00042191,30]
[398346589,1765538147015,-677.72,0.00042191,30]
[398346590,1765538147024,-1062.51,0.00042191,30]
[398346591,1765538147033,-1023.2,0.00042191,30]
[398346592,1765538147042,-765.14,0.00042191,30]
[398346593,1765538147051,-2249.34,0.00042191,30]
[398346594,1765538147060,-541.12,0.00042191,30]
[398346595,1765538147069,-641.4,0.00042191,30]
[398346596,1765538147078,-2149.98,0.00042191,30]
[398346597,1765538147088,-1066.93,0.00042191,30]
[398346598,1765538147098,-1794.3,0.00042191,30]
[398346599,1765538147107,-500.0,0.00042191,30]
[398346600,1765538147116,-6024.98,0.00042191,30]
[398346601,1765538147126,-500.0,0.00042191,30]
[398346602,1765538147135,-652.45,0.00042191,30]
[398346603,1765538147144,-584.74,0.00042191,30]
[398346604,1765538147153,-500.0,0.00042191,30]
[398346605,1765538147163,-500.0,0.00042191,30]
[398346606,1765538147172,-1595.92,0.00042191,30]
[398346607,1765538147182,-920.72,0.00042191,30]
[398346608,1765538147191,-1243.86,0.00042191,30]
[398346609,1765538147201,-616.65,0.00042191,30]
[398346610,1765538147211,-3185.29,0.00042191,30]
[398346611,1765538147221,-1899.74,0.00042191,30]
[398346612,1765538147231,-767.47,0.00042191,30]
[398346613,1765538147240,-3636.79,0.00042191,30]
[398346614,1765538147250,-1283.24,0.00042191,30]
[398346615,1765538147260,-1218.06,0.00042191,30]